Cogmind - Beta 13 X2 @@@ ROGUE MODE // 2024.01.24 @ 15:45:53 // Winter2022/Polymind Player: Minty Result: Destroyed by H-55 Commando with Assault Rifle Performance ------------- Evolutions (2) 1000 Regions Visited (5) 1000 Robots Destroyed (21) 105 Value Destroyed (856) 856 Prototype IDs (0) 0 Alien Tech Used (0) 0 Bonus (1804) 1804 TOTAL SCORE: 4625 Bonus ------- Polymind Skill 1620 Entered Garrisons 200 Friendly Fire -16 Cogmind --------- Core Integrity 0/550 Matter 64/100 Energy 215/215 System Corruption 2% Temperature Cool (56) Movement Treading (160) Location -8/Garrison Parts ------- > --- POWER (1) -------- Improved Ion Engine > --- PROPULSION (2) --- Light Treads Light Treads > --- UTILITY (3) ------ Heat Sink > --- WEAPON (2) ------- Heavy Assault Rifle > --- INVENTORY (1) ---- (None) Peak State ------------ > --- POWER ------------ Nuclear Core > --- PROPULSION ------- VSS Leg VSS Leg > --- UTILITY ---------- Improved Heat Sink Hardened Medium Armor Plating > --- WEAPON ----------- Shotgun High-powered Shotgun > --- INVENTORY -------- (None) [Rating: 20] Favorites ----------- Power Light Nuclear Core Engine Reinforced Ion Engine Power Core Light Nuclear Core Propulsion Aluminum Leg Treads Light Treads Leg Aluminum Leg Utility Improved Heat Sink Device Improved Heat Sink Protection Light Armor Plating Weapon Particle Gun Energy Gun Particle Gun Ballistic Gun Heavy Assault Rifle Impact Weapon Hammer Build | -11 -10 -10 -9 -8 -8 ------- Run | Yrd Mat Min Mat Mat Gar Slots Evolved . | . . . . . . Power . | . . . . . . Propulsion . | . . . . . . Utility . | . . . . . . Weapon . | . . . . . . Parts Attached . | . . . . . . Power . | . . . . . . Engine . | . . . . . . Core . | . . . . . . Reactor . | . . . . . . Propulsion . | . . . . . . Treads . | . . . . . . Leg . | . . . . . . Wheel . | . . . . . . Hover . | . . . . . . Flight . | . . . . . . Utility . | . . . . . . Device . | . . . . . . Storage . | . . . . . . Processor . | . . . . . . Hackware . | . . . . . . Protection . | . . . . . . Artifact . | . . . . . . Weapon . | . . . . . . Energy Gun . | . . . . . . Energy Cannon . | . . . . . . Ballistic Gun . | . . . . . . Ballistic Cannon . | . . . . . . Launcher . | . . . . . . Special Weapon . | . . . . . . Impact Weapon . | . . . . . . Slashing Weapon . | . . . . . . Piercing Weapon . | . . . . . . Special Melee Weapon . | . . . . . . Unidentified Prototypes . | . . . . . . Parts Lost 13 | . . . 3 . 10 Power 2 | . . . 1 . 1 Propulsion 4 | . . . 2 . 2 Utility 4 | . . . . . 4 Weapon 3 | . . . . . 3 Highest Loss Streak 4 | . . . 3 . 4 To Critical Strikes . | . . . . . . Average Slot Usage (%) 89 | . 37 100 90 100 88 Engine 5 | . . . 1 20 10 Core 11 | . 7 20 14 . 3 Treads 10 | . . . 2 40 19 Leg 24 | . 15 40 32 . 11 Device 14 | . 7 20 18 . 13 Protection 4 | . . . 1 20 8 Energy Gun 12 | . 7 20 18 . 6 Ballistic Gun 2 | . . . . . 8 Impact Weapon 4 | . . . 1 20 5 Naked Turns 57 | . 49 . . . 8 Heaviest Build 22 | . 9 9 15 15 22 Greatest Support 40 | 3 20 20 40 40 40 Greatest Overweight (x) 1 | . . . 1 . . Average Overweight (x) . | . . . . . . Largest Inventory Capacity 1 | . 1 1 1 1 1 Average Capacity . | . . 1 1 1 . Most Carried . | . . . . . . Average Carried . | . . . . . . Final Capacity 1 | . 1 1 1 1 1 Final Carried . | . . . . . . Class Distribution -------------------- 60% | Grunt 19% | Brawler 8% | Sentry 5% | Cogmind 5% | Specialist Dominant Class ---------------- Cogmind | -10/Materials Grunt | -10/Mines Grunt | -9/Materials Brawler | -8/Materials Sentry | -8/Garrison Resources | -11 -10 -10 -9 -8 -8 ----------- Run | Yrd Mat Min Mat Mat Gar Matter Collected 92 | . . . . . 92 Remotely . | . . . . . . Salvage Created 860 | . 60 . 288 65 447 Parts 29 | . . . 9 3 17 Haulers Intercepted . | . . . . . . Recyclers Shooed 1 | . . . 1 . . Parts Field Recycled . | . . . . . . Retrieved Matter . | . . . . . . Parts Self-Destructed . | . . . . . . Prevented . | . . . . . . Kills | -11 -10 -10 -9 -8 -8 ------- Run | Yrd Mat Min Mat Mat Gar Combat Hostiles Destroyed 19 | . 1 . 7 1 10 Melee 1 | . . . 1 . . Guns 16 | . 1 . 6 . 9 Classes Destroyed 6 | . 1 . 3 . 2 Worker 1 | . . . 1 . . Watcher 1 | . . . 1 . . Grunt 11 | . 1 . 6 . 4 Brawler 1 | . . . . . 1 Sentry 4 | . . . 1 1 2 Specialist 3 | . . . . . 3 Best Kill Streak 5 | . 1 . 5 1 4 Combat Bots Only 5 | . 1 . 5 1 4 Max Kills in Single Turn 1 | . 1 . 1 1 1 Gunslinging . | . . . . . . Exploded . | . . . . . . Melee 1 | . . . 1 . . Uniques/NPCs Destroyed . | . . . . . . Combat | -11 -10 -10 -9 -8 -8 -------- Run | Yrd Mat Min Mat Mat Gar Hostile Shots Fired 296 | . 9 . 62 6 219 Missed 94 | . 4 . 26 1 63 Damage Taken 2880 | . 55 . 526 78 2221 Core 798 | . 23 . 217 30 528 Absorbed by Shields . | . . . . . . Core Remaining (%) 78 | 100 . 90 45 . . Volleys Fired 106 | . 6 3 55 . 42 Largest 2 | . 1 1 1 . 2 Hottest 79 | . 65 65 65 . 79 Shots Fired 128 | . 6 3 55 . 64 Gun 128 | . 6 3 55 . 64 Cannon . | . . . . . . Launcher . | . . . . . . Special . | . . . . . . Kinetic 43 | . . . . . 43 Thermal 85 | . 6 3 55 . 21 Explosive . | . . . . . . Electromagnetic . | . . . . . . Robot Hit Streak 13 | . 3 . 6 . 13 Robot Miss Streak 4 | . 2 . 4 . 4 Penetration Max . | . . . . . . Secondary Targets 3 | . . . . . 3 Max Gunslinging Chain 1 | . . . . . 1 Shots Hit Robots 107 | . 4 . 40 3 60 Core Hits 44 | . 2 1 16 . 25 Critical Kills 1 | . . . . . 1 Critical Parts Destroyed 2 | . . . . 1 1 Critical Strikes 7 | . . . 3 1 3 Burn 4 | . . . 3 . 1 Destroy 2 | . . . . . 2 Smash 1 | . . . . 1 . Melee Attacks 18 | . . . 1 3 14 Impact 18 | . . . 1 3 14 Slashing . | . . . . . . Piercing . | . . . . . . Sneak Attacks 3 | . . . 1 1 1 Combat Hostiles 3 | . . . 1 1 1 Follow-up Attacks . | . . . . . . Damage Inflicted 1980 | . 78 9 732 51 1110 Guns 1570 | . 78 . 651 . 841 Cannons . | . . . . . . Explosions . | . . . . . . Melee 389 | . . . 81 51 257 Ramming 21 | . . 9 . . 12 Kinetic 598 | . . . . . 598 Thermal 972 | . 78 . 651 . 243 Explosive . | . . . . . . Electromagnetic . | . . . . . . Impact 389 | . . . 81 51 257 Slashing . | . . . . . . Piercing . | . . . . . . Highest Corruption 2 | . . . . . 2 Average Corruption 2 | . . . . . 2 Corruption Purged . | . . . . . . Corruption Blocked . | . . . . . . Overload Shots . | . . . . . . Overflow Damage 125 | . . . 80 12 33 Projectiles . | . . . . . . Explosions . | . . . . . . Melee 125 | . . . 80 12 33 Knockbacks 2 | . . . . . 2 Impact 2 | . . . . . 2 Kinetic . | . . . . . . Secondary . | . . . . . . Self-Inflicted Damage 12 | . . . . . 12 Shots . | . . . . . . Rammed . | . . . . . . Targets Rammed 4 | . . 4 . . . Kicked 4 | . . 4 . . . Crushed . | . . . . . . Highest Temperature 191 | . 45 . 65 5 191 Average Temperature 44 | . 32 . 25 3 52 Received Heat Transfer 837 | . 51 . 255 18 513 Siege Activations . | . . . . . . Robots Corrupted . | . . . . . . Combat Hostiles . | . . . . . . Parts Fried 1 | . . . 1 . . Impact Corruptions 3 | . . . 1 1 1 Robots Melted . | . . . . . . Combat Hostiles . | . . . . . . Parts Melted 7 | . . . 6 . 1 Heat Transferred 2570 | . 185 . 1739 . 646 Parts Sabotaged . | . . . . . . Parts Stolen . | . . . . . . Parts Stripped . | . . . . . . Power Chain Reactions . | . . . . . . Missiles Intercepted . | . . . . . . Alert | -11 -10 -10 -9 -8 -8 ------- Run | Yrd Mat Min Mat Mat Gar Peak Influence 250 | . 42 16 158 96 250 Initial 66 | . . 16 5 66 62 Average 61 | . 21 16 51 76 123 Maximum Alert Level 1 | . . . . . 1 Low Security (%) 92 | . 100 100 100 100 73 Level 1 7 | . . . . . 26 Level 2 . | . . . . . . Level 3 . | . . . . . . Level 4 . | . . . . . . Level 5 . | . . . . . . High Security . | . . . . . . Max Security . | . . . . . . Squads Dispatched 1 | . . . 1 . . Investigation . | . . . . . . Extermination . | . . . . . . Reinforcement 1 | . . . 1 . . Assault . | . . . . . . Garrison . | . . . . . . Intercept . | . . . . . . Searches Triggered . | . . . . . . Construction Impeded . | . . . . . . Haulers Reinforced . | . . . . . . Active Scanning Responses . | . . . . . . Cargo Convoy Interrupts . | . . . . . . Stealth | -11 -10 -10 -9 -8 -8 --------- Run | Yrd Mat Min Mat Mat Gar Distress Signals 3 | . . . 2 . 1 Communications Jammed . | . . . . . . Distress Signals . | . . . . . . Times Spotted 45 | . 5 . 15 1 24 Peak Tracking Total 6 | . 2 . 6 1 5 Tactical Retreats 1 | . . . . . 1 Traps | -11 -10 -10 -9 -8 -8 ------- Run | Yrd Mat Min Mat Mat Gar Traps Triggered . | . . . . . . Indirectly . | . . . . . . Trap Hack Attempts . | . . . . . . Triggered . | . . . . . . Disarmed . | . . . . . . Reprogrammed . | . . . . . . Reused . | . . . . . . Traps Extracted . | . . . . . . Installed . | . . . . . . Triggered . | . . . . . . Objects Rigged 10 | . 10 . . . . Machines | -11 -10 -10 -9 -8 -8 ---------- Run | Yrd Mat Min Mat Mat Gar Machines Disabled . | . . . . . . Max in Single Turn . | . . . . . . Machines Repaired . | . . . . . . Machines Dismantled . | . . . . . . Machines Sabotaged . | . . . . . . Overloaded Fab Kills . | . . . . . . Hacking | -11 -10 -10 -9 -8 -8 --------- Run | Yrd Mat Min Mat Mat Gar Machines Accessed 6 | . 2 1 1 1 1 Terminals 4 | . 2 . 1 . 1 Fabricators . | . . . . . . Repair Stations . | . . . . . . Recycling Units . | . . . . . . Scanalyzers . | . . . . . . Garrison Access 1 | . . . . 1 . Total Hacks 18 | . 8 1 4 1 4 Successful 8 | . 5 1 1 1 . Failed 10 | . 3 . 3 . 4 Catastrophic 2 | . 1 . . . 1 Database Lockouts . | . . . . . . Manual 6 | . 3 . 3 . . Terminals 16 | . 8 . 4 . 4 Fabricators . | . . . . . . Repair Stations . | . . . . . . Recycling Units . | . . . . . . Scanalyzers . | . . . . . . Garrison Access 1 | . . . . 1 . Terminal Hacks 5 | . 3 1 1 . . Open Door 1 | . . 1 . . . Branch Access Points 1 | . 1 . . . . Emergency Access Points 1 | . 1 . . . . Terminal Index 1 | . 1 . . . . Recall Reinforcements 1 | . . . 1 . . Fabricator Hacks . | . . . . . . Repair Station Hacks . | . . . . . . Recycling Unit Hacks . | . . . . . . Scanalyzer . | . . . . . . Garrison Access Hacks 1 | . . . . 1 . Unlock Access 1 | . . . . 1 . Unauthorized Hacks 2 | . 2 . . . . Terminals 2 | . 2 . . . . Botnet 1 | . 1 . . . . Detonate 1 | . 1 . . . . Fabricators . | . . . . . . Repair Stations . | . . . . . . Recycling Units . | . . . . . . Scanalyzers . | . . . . . . Garrison Access . | . . . . . . Data Cores Recovered . | . . . . . . Used . | . . . . . . Hacking Detections 5 | . 2 . 1 1 1 Full Trace Events 2 | . 1 . . . 1 Feedback Events . | . . . . . . Feedback Blocked . | . . . . . . Robot Schematics Acquired . | . . . . . . Robots Built . | . . . . . . Authchips . | . . . . . . Time . | . . . . . . Total Robot Build Rating . | . . . . . . Part Schematics Acquired . | . . . . . . Parts Built . | . . . . . . Authchips . | . . . . . . Time . | . . . . . . Total Part Build Rating . | . . . . . . Parts Repaired . | . . . . . . Time . | . . . . . . Parts Recycled . | . . . . . . Recycled Matter . | . . . . . . Retrieved Matter . | . . . . . . Retrieved Components . | . . . . . . Parts Scanalyzed . | . . . . . . Part Schematics Acquired . | . . . . . . Parts Damaged . | . . . . . . Bothacking | -11 -10 -10 -9 -8 -8 ------------ Run | Yrd Mat Min Mat Mat Gar Used RIF Installer . | . . . . . . Robots Hacked 5 | . 1 . 1 . 3 Non-combat . | . . . . . . Combat 5 | . 1 . 1 . 3 Robot Hacks Applied 5 | . 1 . 1 . 3 find_shortcuts 5 | . 1 . 1 . 3 Relay Couplers Released . | . . . . . . Fabnet Peak Effective % . | . . . . . . Robots Rewired . | . . . . . . Allies Hacked . | . . . . . . Hacks Repelled . | . . . . . . Allies | -11 -10 -10 -9 -8 -8 -------- Run | Yrd Mat Min Mat Mat Gar Total Allies . | . . . . . . Largest Group . | . . . . . . Highest-Rated Group . | . . . . . . Highest-Rated Ally . | . . . . . . Total Orders . | . . . . . . Ally Attacks . | . . . . . . Total Damage . | . . . . . . Kills . | . . . . . . Allies Corrupted . | . . . . . . Allies Melted . | . . . . . . Intel | -11 -10 -10 -9 -8 -8 ------- Run | Yrd Mat Min Mat Mat Gar Robot Analysis Total 4 | . 1 . 1 . 2 Derelict Logs Recovered 1 | . . 1 . . . Drone Launches . | . . . . . . Drone Recoveries . | . . . . . . Exploration | -11 -10 -10 -9 -8 -8 ------------- Run | Yrd Mat Min Mat Mat Gar Turns Passed 1052 | . 88 279 295 111 279 Spaces Moved 557 | 1 116 129 145 65 101 Core 109 | 1 92 . 9 . 7 Treads 124 | . . . 10 65 49 Legs 324 | . 24 129 126 . 45 Wheels . | . . . . . . Hover . | . . . . . . Flight . | . . . . . . Fastest Speed 50 | 50 50 120 100 160 50 Average Speed 114 | 50 64 120 121 160 127 Slowest Speed 160 | 50 120 120 160 160 160 Overloaded Moves . | . . . . . . Propulsion Burnouts . | . . . . . . Robots Hopped . | . . . . . . Cave-ins Triggered . | . . . . . . Exploration Rate (%) 23 | 2 36 49 30 11 14 Regions Visited 5 Branch Regions 1 Pre-discovered Areas 1 | . . 1 . . . Known Exits Taken 2 | . 1 . . 1 . Unknown Exits Taken 3 | 1 . 1 1 . . Scrap Searched 1 | . . 1 . . . Spaces Dug . | . . . . . . Terrain Destroyed . | . . . . . . Melee . | . . . . . . Projectile . | . . . . . . AOE . | . . . . . . Terrain Rammed 2 | . . . . . 2 Walls Destroyed . | . . . . . . Machines Disabled . | . . . . . . Actions | -11 -10 -10 -9 -8 -8 --------- Run | Yrd Mat Min Mat Mat Gar Total 809 | . 123 249 207 67 163 Wait 127 | . 2 114 7 . 4 Move 552 | . 115 128 144 64 101 Hop . | . . . . . . Pick Up . | . . . . . . Fast Attach . | . . . . . . Attach . | . . . . . . Detach . | . . . . . . Swap . | . . . . . . Drop . | . . . . . . Fire 106 | . 6 3 55 . 42 Melee 18 | . . . 1 3 14 Ram 2 | . . . . . 2 Kick 4 | . . 4 . . . Crush . | . . . . . . Escape Stasis . | . . . . . . Rewire . | . . . . . . Trap . | . . . . . . Miscellaneous . | . . . . . . Route ------- -11/Scrapyard -10/Materials (discovered 2 exits: *Mat / *Min) -10/Mines -9/Materials -8/Materials -8/Garrison History --------- Turn | Location | Event 1 | -11/Scrapyard | Discovered new exit (range 0) 1 | -11/Scrapyard | Entered Materials 18 | -10/Materials | Discovered new exit (range 16) 33 | -10/Materials | Identified exit to Mines 89 | -10/Materials | Entered Mines 109 | -10/Mines | Learned location of Zion (-7) 338 | -10/Mines | Discovered new exit (range 14) 359 | -10/Mines | Met a Derelict who couldn't figure out how to use a Trap Extractor 368 | -10/Mines | Entered Materials 585 | -9/Materials | Discovered new exit (range 16) 614 | -9/Materials | Core integrity fell below 50% 640 | -9/Materials | Lost 3 parts (1p2n) 663 | -9/Materials | Entered another Materials area 769 | -8/Materials | Identified exit to Garrison 774 | -8/Materials | Entered Garrison 786 | -8/Garrison | Triggered checkpoint 882 | -8/Garrison | Lost 3 parts (2n1u) 899 | -8/Garrison | Core integrity fell below 50% 959 | -8/Garrison | Core integrity fell below 20% 984 | -8/Garrison | Lost 4 parts (1p1u2w) 1053 | -8/Garrison | Destroyed by H-55 Commando with Assault Rifle Last Messages --------------- 00959_ Destroyed Heat Sink. 00962_ Y-45 Defender destroyed. 00971_ Acquired 15 matter. 00979_ Connecting with Door Terminal... 00979_ ALERT: Suspicious activity at Terminal G002. Transmitting hostile system tracking data. 01017_ G-47 Trooper destroyed. 01019_ Slug penetrates Wall. 01022_ Heat Sink destroyed. 01023_ G-47 Trooper suffers critical hit (Burn). 01025_ Slug penetrates Wall. 01030_ G-47 Trooper heat short circuits Imp. Heat Sink. 01031_ Slug penetrates Wall. 01034_ G-47 Trooper overheating. 01035_ Lgt. Armor Plating destroyed. 01035_ Broken Imp. Heat Sink melted. 01035_ G-47 Trooper destroyed. 01035_ Switching to secondary target: H-55 Commando. 01038_ Beam Rifle destroyed. 01041_ Penetrated by Slug. Map ----- +----------------------------------------------------+ | ?????????????????????????????????????????????????? | | ?????????????????????????????????????????????????? | | ??????????????????????????????############???????? | | ??????????????????????????????#""""""""""#???????? | | ??????????????????????????????#"""=!|]"""#???????? | | ??????????????????????????????#"" ""#???????? | | ??????????????????????????????#"! !"#???????? | | ??????????????????????????????# = ++++ ]"#???????? | | ??????????????????????????????# *[+!%/ !"#???????? | | ??????????????????????????????#"] +* / !"#???????? | | ???????????????????????? ????# ![++#+ = #???????? | | ???????????????????????? ????#"== [ !"#???????? | | ???????????????????????? ????# " [ ""#???????? | | ???????????????????????# ????### ###???????? | | ???????????????????????# ??????# #?????##### | | ???????????????????????# ??????## ####?????# # | | ????????????????######## ########++########## # | | ??????????????? % # | | ??????????????? # | | ??????????????? # | | ???????????????????#####h/######## ############# | | ???????????????????????#=%#??????# #????###????? | | ???????????????????????# [#??????##"##?####T#????? | | ???????????????????????# #???????# #??#! "????? | | ???????????????????????# ######### ####!= "????? | | ???????????????????????# Y =%[% #????? | | ???????????????????????# ##### ########[= #????? | | ???????????????????????# #???# #??????# #????? | | ???????????????????????#%[#???! !??????## ##????? | | ???????????????????????x #??#! !!??????####?????? | | ?????????????????????? #??######??????????????? | | ?????????????????????######??????????????????????? | | ?????????????????????????????????????????????????? | | ?????????????????????????????????????????????????? | | ?????????????????????????????????????????????????? | | ?????????????????????????????????????????????????? | | ?????????????????????????????????????????????????? | | ?????????????????????????????????????????????????? | | ?????????????????????????????????????????????????? | | ?????????????????????????????????????????????????? | | ?????????????????????????????????????????????????? | | ?????????????????????????????????????????????????? | | ?????????????????????????????????????????????????? | | ?????????????????????????????????????????????????? | | ?????????????????????????????????????????????????? | | ?????????????????????????????????????????????????? | | ?????????????????????????????????????????????????? | | ?????????????????????????????????????????????????? | | ?????????????????????????????????????????????????? | | ??????+??????????????????????????????????????????? | +----------------------------------------------------+ Best States ------------- Heat Dissipation 43 Energy Generation 19 Energy Capacity 215 Matter Stores 200 Matter Capacity 200 Sight Range 16 Terrain Scan Density 10 Armor Coverage 225 Resistance: EX 50 Resistance: I 25 Resistance: S 25 Evasion (%) 57 Recoil Reduction 2 Item Schematics ----------------- None Robot Schematics ------------------ None Fabricated ------------ Nothing Alien Tech Used ----------------- None Achievements -------------- None Challenges ------------ None Polymind | -11 -10 -10 -9 -8 -8 ---------- Run | Yrd Mat Min Mat Mat Gar Hosts 5 | . 1 . 1 . 3 Combat Hostiles 5 | . 1 . 1 . 3 Allies . | . . . . . . Unique Host Classes 4 | . 1 . 1 . 2 Average Host Suspicion 76 | . 100 53 86 54 92 Unsuspicious Activity 26 | . . . 11 . 15 Returns to Shadow . | . . . . . . Fuzzy Dispatches . | . . . . . . Protomatter Created 106 | . . . 47 . 59 Used 133 | . 30 . 23 . 80 Decayed . | . . . . . . Highest Spend 30 | . 30 . 23 . 30 Top 5 Hosts by Kills: G-47 Trooper (-10/Materials: 7) X-57 Shotgunner (-8/Garrison: 4) Y-45 Defender (-8/Garrison: 4) B-36 Bruiser (-9/Materials: 3) G-47 Trooper (-8/Garrison: 1) Game ------ Seed GravitonHoverGun Manual? 0 Play Time 00:09:02 Cumulative 616.0 hours Start 2024.01.24 @ 15:39:06 End 2024.01.24 @ 15:45:53 Sessions 1 Manual Loads 0 Difficulty Rogue Special Mode Winter2022/Polymind Game No. 564 Rogue 291 Adventurer 123 Explorer 150 Win Type - Total 25 Types 19/0/4/1/0/0/0/1/0 Lore% 79 Gallery% 90 Achievement% 75 Wizard Run 0 Options --------- ASCII 0 Keyboard 1 Movement Numpad Keybinds 0 Fullscreen 2 Font 18/X11Bold Map View 76x50 Zoom Use 0% Tactical HUD 1 Map Filters NONE Filters NONE Steam 1 RUN: 82370183-b2c4-446d-9669-64901b82c8a4